bitfinex/quotes_BTCUSD_20250205
["timestamp","ask_amount","ask_price","bid_price","bid_amount"]
[1738723179358,0.0488,97669.0,97668.0,0.00483204]
[1738723179563,0.0498,97669.0,97664.0,0.0052815]
[1738723179918,0.0488,97669.0,97664.0,0.1281505]
[1738723180118,0.0488,97669.0,97665.0,0.00483154]
[1738723182826,0.0488,97669.0,97667.0,0.122865]
[1738723183032,0.0488,97669.0,97668.0,0.1281465]
[1738723183242,0.0488,97669.0,97668.0,0.13297757]
[1738723183451,0.0498,97669.0,97668.0,0.13297757]
[1738723183862,0.001,97669.0,97668.0,0.13297757]
[1738723184457,0.001,97669.0,97668.0,0.1342061]
[1738723184654,0.0001068,97670.0,97669.0,0.122863]
[1738723185092,0.0001068,97670.0,97669.0,0.1281445]
[1738723185297,0.0001068,97670.0,97669.0,0.13297557]
[1738723186346,0.0001068,97670.0,97669.0,0.13697557]
[1738723186620,0.0001068,97670.0,97669.0,0.14832079]
[1738723186790,0.0001068,97670.0,97669.0,0.29832079]
[1738723187003,0.0001068,97670.0,97669.0,0.40070585]
[1738723187384,0.0001068,97670.0,97669.0,0.40470585]
[1738723187585,0.0001068,97670.0,97669.0,0.40370585]
[1738723188018,0.0001068,97670.0,97669.0,0.40470585]
[1738723188521,0.0001068,97670.0,97669.0,0.39570585]
[1738723188723,0.0001068,97670.0,97669.0,0.39670585]
[1738723188935,0.0001068,97670.0,97669.0,0.40070585]
[1738723189079,0.0001068,97670.0,97669.0,0.39670585]
[1738723189277,0.0001068,97670.0,97669.0,0.42690491]
[1738723189479,0.0001068,97670.0,97669.0,0.43190491]
[1738723189695,0.0001068,97670.0,97669.0,0.42790491]
[1738723190201,0.0001068,97670.0,97669.0,0.43190491]
[1738723190441,0.0001068,97670.0,97669.0,0.42790491]
[1738723191250,0.0001068,97670.0,97669.0,0.42690491]
[1738723191655,0.0001068,97670.0,97669.0,0.42790491]
[1738723191851,0.0001068,97670.0,97669.0,0.40070585]
[1738723192195,0.0001068,97670.0,97669.0,0.42689081]
[1738723192400,0.0001068,97670.0,97669.0,0.43189081]
[1738723192607,8e-07,97670.0,97669.0,0.43189081]
[1738723192777,8e-07,97670.0,97669.0,0.81269081]
[1738723192957,8e-07,97670.0,97669.0,0.81569081]
[1738723193376,8e-07,97670.0,97669.0,0.81269081]
[1738723193708,8e-07,97670.0,97669.0,0.81669081]
[1738723194360,8e-07,97670.0,97669.0,0.81569081]
[1738723194759,8e-07,97670.0,97669.0,0.81669081]
[1738723195613,8e-07,97670.0,97669.0,0.78550585]
[1738723197454,8e-07,97670.0,97669.0,0.68312079]
[1738723197940,0.5119308,97670.0,97669.0,0.67812079]
[1738723198097,0.5119308,97670.0,97669.0,0.67912079]
[1738723198302,0.5119308,97670.0,97669.0,0.68312079]
[1738723198486,0.5119308,97670.0,97669.0,0.67812079]
[1738723198691,0.5119308,97670.0,97669.0,0.29332079]
[1738723198942,0.5119308,97670.0,97669.0,0.29432079]
[1738723199371,0.5119308,97670.0,97669.0,0.29832079]
[1738723199574,0.5618308,97670.0,97669.0,0.13697557]
[1738723199786,0.5618308,97670.0,97669.0,0.13297557]
[1738723200121,0.5618308,97670.0,97669.0,0.13697557]
[1738723200294,0.5618308,97670.0,97669.0,0.13719985]
[1738723200894,0.5618308,97670.0,97669.0,0.13819985]
[1738723201086,0.70051388,97670.0,97669.0,0.01005535]
[1738723201290,0.6443308,97670.0,97669.0,0.00505535]
[1738723201492,0.6443308,97670.0,97669.0,0.00022428]
[1738723201760,0.6443308,97670.0,97669.0,0.00422428]
[1738723201938,0.6443308,97670.0,97669.0,0.00022428]
[1738723202356,0.6443308,97670.0,97669.0,0.00122428]
[1738723202557,0.6443308,97670.0,97669.0,0.00022428]
[1738723202756,0.6453308,97670.0,97669.0,0.00022428]
[1738723203867,0.6443308,97670.0,97669.0,0.00022428]
[1738723204271,0.6463308,97670.0,97669.0,0.00022428]
[1738723204653,0.6443308,97670.0,97669.0,0.00022428]
[1738723204990,0.122876,97659.0,97648.0,0.0052815]
[1738723205168,0.122876,97659.0,97635.0,0.01024378]
[1738723205169,0.34187439,97658.0,97650.0,0.0819005]
[1738723205339,0.85380439,97658.0,97650.0,0.0819005]
[1738723205569,0.85380439,97658.0,97649.0,0.0052815]
[1738723206323,0.85380439,97658.0,97650.0,0.00480432]
[1738723206324,0.122879,97657.0,97650.0,0.00480432]
[1738723206478,0.0471,97655.0,97650.0,0.00480432]
[1738723206700,0.122889,97649.0,97648.0,0.002]
[1738723206864,0.66141506,97649.0,97648.0,0.002]
[1738723207585,0.66141506,97649.0,97642.0,0.0052815]
[1738723208209,0.66141506,97649.0,97648.0,0.001]
[1738723208798,0.66141506,97649.0,97642.0,0.1281785]
[1738723208998,0.66141506,97649.0,97643.0,0.122895]
[1738723209303,0.55903,97649.0,97648.0,0.1281715]
[1738723209718,0.55903,97649.0,97648.0,0.1277292]
[1738723209943,0.55903,97649.0,97648.0,0.0101207]
[1738723210307,0.55903,97649.0,97648.0,0.1281715]
[1738723210657,0.51193,97649.0,97648.0,0.13301155]
[1738723211560,0.51193,97649.0,97648.0,0.13601155]
[1738723211882,0.51193,97649.0,97648.0,0.13401155]
[1738723212079,0.51193,97649.0,97648.0,0.13701155]
[1738723212290,0.51193,97649.0,97648.0,0.13801155]
[1738723212414,0.51193,97649.0,97648.0,0.13423583]
[1738723212624,0.51193,97649.0,97648.0,0.13623583]
[1738723213895,0.51193,97649.0,97648.0,0.13323583]
[1738723214312,0.51193,97649.0,97648.0,0.01334583]
[1738723214555,0.51193,97649.0,97648.0,0.13423583]
[1738723214769,0.51193,97649.0,97648.0,0.13323583]
[1738723215377,0.51193,97649.0,97648.0,0.01034583]
[1738723215934,0.51193,97649.0,97648.0,0.13323583]
[1738723219042,0.57338,97649.0,97648.0,0.13323583]
[1738723220221,0.51193,97649.0,97648.0,0.13323583]
[1738723227613,0.51193,97649.0,97648.0,0.01034583]
[1738723228104,0.51193,97649.0,97648.0,0.12839578]
[1738723228295,0.51193,97649.0,97648.0,0.13324007]
[1738723230682,0.51193,97649.0,97648.0,0.13424007]
[1738723231057,0.51193,97649.0,97648.0,0.13324007]
[1738723231849,0.51193,97649.0,97648.0,0.13706624]
[1738723232306,0.51193,97649.0,97648.0,0.13506624]
[1738723232491,0.51193,97649.0,97648.0,0.13706624]
[1738723232827,0.51193,97649.0,97648.0,0.13606624]
[1738723233229,0.51193,97649.0,97648.0,0.13706624]
[1738723233528,0.51193,97649.0,97648.0,0.13506624]
[1738723233730,0.51193,97649.0,97648.0,0.01217624]
[1738723233935,0.51193,97649.0,97648.0,0.13506624]
[1738723238753,0.58733,97649.0,97648.0,0.01217624]
[1738723239086,0.58733,97649.0,97648.0,0.00550578]
[1738723239294,0.58733,97649.0,97648.0,0.01217617]
[1738723240107,0.58733,97649.0,97648.0,0.00550578]
[1738723240333,0.58733,97649.0,97648.0,0.13506578]
[1738723240499,0.58733,97649.0,97648.0,0.12839578]
[1738723240698,0.58733,97649.0,97648.0,0.13506578]
[1738723240902,0.58733,97649.0,97648.0,0.01217578]
[1738723241948,0.58733,97649.0,97648.0,0.13506578]
[1738723243434,0.51193,97649.0,97648.0,0.13506578]
[1738723244950,0.51193,97649.0,97648.0,0.13606578]
[1738723245374,0.51193,97649.0,97648.0,0.13706578]
[1738723245779,0.51193,97649.0,97648.0,0.13806578]
[1738723246222,0.51193,97649.0,97648.0,0.13606578]
[1738723247703,0.51193,97649.0,97648.0,0.13506578]
[1738723248203,0.51193,97649.0,97648.0,0.13806578]
[1738723248705,0.51193,97649.0,97648.0,0.14106578]
[1738723248903,0.51193,97649.0,97648.0,0.13606578]
[1738723249307,0.51193,97649.0,97648.0,0.13706578]
[1738723249728,0.51193,97649.0,97648.0,0.13806578]
[1738723249945,0.51193,97649.0,97648.0,0.28806578]
[1738723250148,0.51193,97649.0,97648.0,0.50400505]
[1738723250347,0.430002,97649.0,97648.0,0.89040505]
[1738723250545,0.40952,97649.0,97648.0,0.85915084]
[1738723250765,0.40952,97649.0,97648.0,0.88838958]
[1738723250995,0.40952,97649.0,97648.0,0.88578958]
[1738723251210,0.40952,97649.0,97648.0,0.88350808]
[1738723251410,0.40952,97649.0,97648.0,0.80448958]
[1738723251696,0.40952,97649.0,97648.0,0.80748958]
[1738723251901,0.40952,97649.0,97648.0,0.77625084]
[1738723252131,0.40952,97649.0,97648.0,0.77325084]
[1738723252337,0.40952,97649.0,97648.0,0.77725084]
[1738723252459,0.40952,97649.0,97648.0,0.77625084]
[1738723252659,0.40952,97649.0,97648.0,0.77225084]
[1738723253116,0.40952,97649.0,97648.0,0.77325084]
[1738723254475,0.40952,97649.0,97648.0,0.77625084]
[1738723254682,0.40952,97649.0,97648.0,0.77725084]
[1738723255322,0.40952,97649.0,97648.0,0.39145084]
[1738723255637,0.40952,97649.0,97648.0,0.39245084]
[1738723255911,0.40952,97649.0,97648.0,0.38845084]
[1738723256111,0.40952,97649.0,97648.0,0.39145084]
[1738723256766,0.40952,97649.0,97648.0,0.39245084]
[1738723257991,0.40952,97649.0,97648.0,0.38745084]
[1738723258124,0.40952,97649.0,97648.0,0.39145084]
[1738723258441,0.40952,97649.0,97648.0,0.38845084]
[1738723258850,0.40952,97649.0,97648.0,0.39145084]
[1738723259051,0.40952,97649.0,97648.0,0.39245084]
[1738723259249,0.40952,97649.0,97648.0,0.29006578]
[1738723259470,0.40952,97649.0,97648.0,0.13478428]
[1738723259670,0.40952,97649.0,97648.0,0.13906578]
[1738723259871,0.40952,97649.0,97648.0,0.13606578]
[1738723260302,0.40952,97649.0,97648.0,0.13078428]
[1738723260507,0.40952,97649.0,97648.0,0.13606578]
[1738723260872,0.45572,97649.0,97648.0,0.01317578]
[1738723261077,0.45572,97649.0,97648.0,0.00650578]
[1738723261274,0.45572,97649.0,97648.0,0.00122428]
[1738723261501,0.55810506,97649.0,97648.0,0.00122428]
[1738723261849,0.55810506,97649.0,97648.0,0.00422428]
[1738723262021,0.55810506,97649.0,97648.0,0.00122428]
[1738723262709,0.55810506,97649.0,97648.0,0.00022428]
[1738723262925,0.47476722,97649.0,97648.0,0.00550578]
[1738723263318,0.47576722,97649.0,97648.0,0.00718415]
[1738723263731,0.57815228,97649.0,97648.0,0.00718415]
[1738723263936,0.57815228,97649.0,97648.0,0.00022428]
[1738723264370,0.55910506,97649.0,97648.0,0.00022428]
[1738723266136,0.55910506,97649.0,97648.0,0.00719758]
[1738723266907,0.55910506,97649.0,97648.0,0.00022428]
[1738723268253,0.62055506,97649.0,97648.0,0.00022428]
[1738723268436,0.55910506,97649.0,97648.0,0.00022428]
[1738723269280,0.45672,97649.0,97648.0,0.01247852]
[1738723269484,0.41052,97649.0,97648.0,0.00550578]
[1738723269632,0.41052,97649.0,97648.0,0.01247907]
[1738723270038,0.41052,97649.0,97648.0,0.16247907]
[1738723270359,0.41052,97649.0,97648.0,0.26486413]
[1738723270910,0.41052,97649.0,97648.0,0.2747956]
[1738723271462,0.40952,97649.0,97648.0,0.3976856]
[1738723271610,0.40952,97649.0,97648.0,0.3986856]
[1738723272018,0.40952,97649.0,97648.0,0.4006856]
[1738723272481,0.4096268,97649.0,97648.0,0.4006856]
[1738723274710,0.4096268,97649.0,97648.0,0.29830054]
[1738723275531,0.4096268,97649.0,97648.0,0.13308757]
[1738723275731,0.4096268,97649.0,97648.0,0.13536907]
[1738723276012,0.4096268,97649.0,97648.0,0.13836907]
[1738723276563,0.4096268,97649.0,97648.0,0.13636907]
[1738723276700,0.4096268,97649.0,97648.0,0.13736907]
[1738723277819,0.4096268,97649.0,97648.0,0.13636907]
[1738723278000,0.4096268,97649.0,97648.0,0.13536907]
[1738723278203,0.4096268,97649.0,97648.0,0.13736907]
[1738723278561,0.4096268,97649.0,97648.0,0.13536907]
[1738723278785,0.4096268,97649.0,97648.0,0.13736907]
[1738723279468,0.4096268,97649.0,97648.0,0.23975413]
[1738723281024,0.4096268,97649.0,97648.0,0.38775413]
[1738723281223,0.4096268,97649.0,97648.0,0.38875413]
[1738723281457,0.4096268,97649.0,97648.0,0.39075413]
[1738723281662,0.4096268,97649.0,97648.0,0.38775413]
[1738723281983,0.4096268,97649.0,97648.0,0.39275413]
[1738723282317,0.4096268,97649.0,97648.0,0.28508757]
[1738723282706,0.4578268,97649.0,97648.0,0.29036907]
[1738723283979,0.4578268,97649.0,97648.0,0.28936907]
[1738723284163,0.4096268,97649.0,97648.0,0.39275413]
[1738723284389,0.4096268,97649.0,97648.0,0.38875413]
[1738723284712,8e-07,97670.0,97668.0,0.0152815]
[1738723284847,8e-07,97670.0,97668.0,0.77533156]
[1738723285067,8e-07,97670.0,97668.0,0.78226777]
[1738723285280,6e-07,97670.0,97669.0,0.1652815]
[1738723285478,6e-07,97670.0,97669.0,0.29882703]
[1738723285674,6e-07,97670.0,97669.0,0.29759887]
[1738723287554,6e-07,97670.0,97669.0,0.30889648]
[1738723287740,6e-07,97670.0,97669.0,0.31289648]
[1738723288841,0.4504996,97670.0,97669.0,0.31289648]
[1738723289065,0.4300226,97670.0,97669.0,0.43575948]
[1738723290088,0.32425075,97670.0,97669.0,0.45478149]
[1738723290284,0.28329675,97670.0,97669.0,0.45478149]
[1738723290525,0.22186575,97670.0,97669.0,0.45178149]
[1738723290950,0.22186575,97670.0,97669.0,1.16638149]
[1738723291247,0.22186575,97670.0,97669.0,1.14738149]
[1738723292197,0.22186575,97670.0,97669.0,1.13738149]
[1738723293580,0.22186575,97670.0,97669.0,1.13338149]
[1738723293785,0.22186575,97670.0,97669.0,1.13238149]
[1738723294097,0.22186575,97670.0,97669.0,1.13738149]
[1738723294485,0.22186575,97670.0,97669.0,1.13638149]
[1738723294802,0.22186575,97670.0,97669.0,1.13738149]
[1738723296066,0.18091175,97670.0,97669.0,1.14738149]
[1738723296265,0.13995775,97670.0,97669.0,1.14738149]
[1738723296466,0.11948075,97670.0,97669.0,1.14738149]
[1738723296784,0.11948075,97670.0,97669.0,1.14338149]
[1738723297141,0.05804975,97670.0,97669.0,1.14760577]
[1738723297319,0.03767955,97670.0,97669.0,1.14760577]
[1738723297532,5.5e-07,97670.0,97669.0,1.13660577]
[1738723297740,5.5e-07,97670.0,97669.0,1.14160577]
[1738723298174,0.51193055,97670.0,97669.0,1.14160577]
[1738723298376,0.51193055,97670.0,97669.0,1.13260577]
[1738723298572,0.51193055,97670.0,97669.0,1.13360577]
[1738723298753,0.51193055,97670.0,97669.0,1.13760577]
[1738723299154,0.51193055,97670.0,97669.0,1.13660577]
[1738723299368,0.51193055,97670.0,97669.0,1.13760577]
[1738723299995,0.51193055,97670.0,97669.0,1.13360577]
[1738723300238,0.51193055,97670.0,97669.0,1.13760577]
[1738723300461,0.51193055,97670.0,97669.0,0.96358376]
[1738723300691,0.58903041,97670.0,97669.0,0.4753987]
[1738723300919,0.58903041,97670.0,97669.0,0.34623809]
[1738723301161,0.58903041,97670.0,97669.0,0.33795659]
[1738723301395,0.58903041,97670.0,97669.0,0.34323809]
[1738723301629,0.58903041,97670.0,97669.0,0.34623809]
[1738723301831,0.63813041,97670.0,97669.0,0.34323809]
[1738723302290,0.63813041,97670.0,97669.0,0.34223809]
[1738723302749,0.63813041,97670.0,97669.0,0.34323809]
[1738723303511,0.63813041,97670.0,97669.0,0.34623809]
[1738723303740,0.63813041,97670.0,97669.0,0.34523809]
[1738723303942,0.63813041,97670.0,97669.0,0.34223809]
[1738723304142,0.63913041,97670.0,97669.0,0.34323809]
[1738723304588,0.63813041,97670.0,97669.0,0.34323809]
[1738723304813,0.55903041,97670.0,97669.0,0.34323809]
[1738723305055,0.55903041,97670.0,97669.0,0.34223809]
[1738723305765,0.55903041,97670.0,97669.0,0.01243809]
[1738723306150,0.55903041,97670.0,97669.0,0.00550578]
[1738723306363,0.55903041,97670.0,97669.0,0.01241941]
[1738723306948,0.63413041,97670.0,97669.0,0.00713791]
[1738723307180,0.63413041,97670.0,97669.0,0.00122428]
[1738723307405,0.63413041,97670.0,97669.0,0.00022428]
[1738723307923,0.63513041,97670.0,97669.0,0.00022428]
[1738723308170,0.63413041,97670.0,97669.0,0.00022428]
[1738723308569,0.63613041,97670.0,97669.0,0.00022428]
[1738723309824,0.63423721,97670.0,97669.0,0.00022428]
[1738723310263,0.63623721,97670.0,97669.0,0.00022428]
[1738723310731,0.63423721,97670.0,97669.0,0.00022428]
[1738723310968,0.63623721,97670.0,97669.0,0.00022428]
[1738723311432,0.63423721,97670.0,97669.0,0.00022428]
[1738723311655,0.63523721,97670.0,97669.0,0.00022428]
[1738723313515,0.63423721,97670.0,97669.0,0.00022428]
[1738723313708,0.63623721,97670.0,97669.0,0.00022428]
[1738723320282,0.63423721,97670.0,97669.0,0.00022428]
[1738723320818,0.86148427,97670.0,97669.0,0.00022428]
[1738723321119,0.85948427,97670.0,97669.0,0.00022428]
[1738723321653,0.86148427,97670.0,97669.0,0.00022428]
[1738723322534,0.87846784,97670.0,97669.0,0.00022428]
[1738723322899,0.88046784,97670.0,97669.0,0.00022428]
[1738723323548,0.97295047,97670.0,97669.0,0.00022428]
[1738723324939,0.90346784,97670.0,97669.0,0.00022428]
[1738723325867,0.93385513,97670.0,97669.0,0.00022428]
[1738723326271,0.93090868,97670.0,97669.0,0.00022428]
[1738723326708,0.93390868,97670.0,97669.0,0.00022428]
[1738723328013,2.43090868,97670.0,97669.0,0.00022428]
[1738723328733,1.0334034,97670.0,97669.0,0.00022428]
[1738723328946,0.93090868,97670.0,97669.0,0.00022428]
[1738723329312,0.93290868,97670.0,97669.0,0.00022428]
[1738723329713,0.97407124,97670.0,97669.0,0.00122428]
[1738723329957,0.97907124,97670.0,97669.0,0.00122428]
[1738723330179,0.98307124,97670.0,97669.0,0.00122428]
[1738723330344,1.08556596,97670.0,97669.0,0.00122428]
[1738723330850,0.95270568,97670.0,97669.0,0.00122428]
[1738723331597,0.89053782,97670.0,97669.0,0.00122428]
[1738723331944,0.95292081,97670.0,97669.0,0.00122428]
[1738723333652,0.9401238,97670.0,97669.0,0.00122428]
[1738723336741,0.7942618,97670.0,97669.0,0.00122428]
[1738723337279,0.61277674,97670.0,97669.0,0.00122428]
[1738723337439,0.58226229,97670.0,97669.0,0.00122428]
[1738723337636,0.58026229,97670.0,97669.0,0.00022428]
[1738723338022,0.53616229,97670.0,97669.0,0.12936878]
[1738723338435,0.53616229,97670.0,97669.0,0.13633408]
[1738723338684,0.51709076,97670.0,97669.0,0.13633408]
[1738723338856,0.51709076,97670.0,97669.0,0.01347108]
[1738723339019,0.51409076,97670.0,97669.0,0.01347108]
[1738723339402,0.51709076,97670.0,97669.0,0.00650578]
[1738723339608,0.51709076,97670.0,97669.0,0.01347108]
[1738723339859,0.50909076,97670.0,97669.0,0.01247108]
[1738723340004,0.51209076,97670.0,97669.0,0.01247108]
[1738723340389,0.51709076,97670.0,97669.0,0.01347108]
[1738723340592,0.51709076,97670.0,97669.0,0.01247108]
[1738723340743,0.52209076,97670.0,97669.0,0.01347108]
[1738723341842,0.51909076,97670.0,97669.0,0.01347108]
[1738723342049,0.50909076,97670.0,97669.0,0.01247108]
[1738723342263,0.51009076,97670.0,97669.0,0.01247108]
[1738723342665,0.51009076,97670.0,97669.0,0.13533408]
[1738723342872,0.50909076,97670.0,97669.0,0.12836878]
[1738723343094,0.58739076,97670.0,97669.0,0.01245822]
[1738723343303,0.68977582,97670.0,97669.0,0.00717672]
[1738723343506,0.69077582,97670.0,97669.0,0.00022428]
[1738723343708,2.18977582,97670.0,97669.0,0.00022428]
[1738723344006,2.18977582,97670.0,97669.0,0.00122428]
[1738723344237,0.68977582,97670.0,97669.0,0.00122428]
[1738723344441,0.58739076,97670.0,97669.0,0.00122428]
[1738723344609,0.51109076,97670.0,97669.0,0.00122428]
[1738723344789,0.51109076,97670.0,97669.0,0.00817983]
[1738723345368,0.51109076,97670.0,97669.0,0.00650578]
[1738723346112,0.51109076,97670.0,97669.0,0.01345977]
[1738723346314,0.51209076,97670.0,97669.0,0.00817827]
[1738723346511,0.51209076,97670.0,97669.0,0.00122428]
[1738723346734,0.61447582,97670.0,97669.0,0.00122428]
[1738723347103,0.66227582,97670.0,97669.0,0.00122428]
[1738723348300,0.51209076,97670.0,97669.0,0.00650578]
[1738723348840,0.51209076,97670.0,97669.0,0.01345218]
[1738723349044,0.51109076,97670.0,97669.0,0.01345218]
[1738723349448,0.51209076,97670.0,97669.0,0.01345218]
[1738723350050,0.51109076,97670.0,97669.0,0.01345218]
[1738723350261,0.51009076,97670.0,97669.0,0.11483724]
[1738723350495,0.51109076,97670.0,97669.0,0.26483724]
[1738723350696,0.51009076,97670.0,97669.0,0.26483724]
[1738723351056,0.51009076,97670.0,97669.0,0.26783724]
[1738723351269,0.51009076,97670.0,97669.0,0.26483724]
[1738723351455,0.50909076,97670.0,97669.0,0.26483724]
[1738723351673,0.50909076,97670.0,97669.0,0.26883724]
[1738723351871,0.50909076,97670.0,97669.0,0.26983724]
[1738723352404,0.50909076,97670.0,97669.0,0.16645218]
[1738723352615,0.50909076,97670.0,97669.0,0.16745218]
[1738723352818,0.50909076,97670.0,97669.0,0.01745218]
[1738723353063,0.50909076,97670.0,97669.0,0.01645218]
[1738723353270,0.50909076,97670.0,97669.0,0.00950578]
[1738723353522,0.50909076,97670.0,97669.0,0.01344703]
[1738723353707,0.50909076,97670.0,97669.0,0.01644703]
[1738723354087,0.50909076,97670.0,97669.0,0.01344703]
[1738723354415,0.51009076,97670.0,97669.0,0.01344703]
[1738723354574,0.50909076,97670.0,97669.0,0.01244703]
[1738723354908,0.50909076,97670.0,97669.0,0.01344703]
[1738723356990,0.50909076,97670.0,97669.0,0.01244703]
[1738723357446,0.50909076,97670.0,97669.0,0.01344703]
[1738723357603,0.50909076,97670.0,97669.0,0.01244703]
[1738723358012,0.50909076,97670.0,97669.0,0.01344703]
[1738723358631,0.50909076,97670.0,97669.0,0.01244703]
[1738723359169,0.55729076,97670.0,97669.0,0.00716553]
[1738723359520,0.55729076,97670.0,97669.0,0.00022428]
[1738723359921,0.55729076,97670.0,97669.0,0.00122428]
[1738723360164,0.55729076,97670.0,97669.0,0.00816553]
[1738723360303,0.55729076,97670.0,97669.0,0.00716553]
[1738723360512,0.55829076,97670.0,97669.0,0.00022428]
[1738723360911,0.55829076,97670.0,97669.0,0.00550578]
[1738723361110,0.55929076,97670.0,97669.0,0.0124464]
[1738723361532,0.55829076,97670.0,97669.0,0.0124464]
[1738723361750,0.55829076,97670.0,97669.0,0.00550578]
[1738723361948,0.55729076,97670.0,97669.0,0.00550578]
[1738723362375,0.50909076,97670.0,97669.0,0.23740628]
[1738723362575,0.50909076,97670.0,97669.0,0.1624464]
[1738723362782,0.50909076,97670.0,97669.0,0.26483146]
[1738723363792,0.50909076,97670.0,97669.0,0.26883146]
[1738723364083,0.50909076,97670.0,97669.0,0.39169446]
[1738723364335,0.50909076,97670.0,97669.0,0.39569446]
[1738723364692,0.50909076,97670.0,97669.0,0.2933094]
[1738723364919,0.50909076,97670.0,97669.0,0.30331658]
[1738723365608,0.50909076,97670.0,97669.0,0.30431658]
[1738723365962,0.50909076,97670.0,97669.0,0.40670164]
[1738723366161,0.50909076,97670.0,97669.0,0.39870164]
[1738723366512,0.50909076,97670.0,97669.0,0.40270164]
[1738723366718,0.50909076,97670.0,97669.0,0.39870164]
[1738723366919,0.50909076,97670.0,97669.0,0.40170164]
[1738723367325,0.50909076,97670.0,97669.0,0.40270164]
[1738723367755,0.50909076,97670.0,97669.0,0.40170164]
[1738723367960,0.50909076,97670.0,97669.0,0.40270164]
[1738723368160,0.50909076,97670.0,97669.0,0.73250164]
[1738723373470,0.50909076,97670.0,97669.0,0.77345764]
[1738723374746,0.50909076,97670.0,97669.0,0.80463521]
[1738723379204,0.50909076,97670.0,97669.0,0.80363521]
[1738723379381,0.50909076,97670.0,97669.0,0.79963521]
[1738723379587,0.50909076,97670.0,97669.0,0.80063521]
[1738723380003,0.50909076,97670.0,97669.0,1.18943521]
[1738723382135,0.50909076,97670.0,97669.0,1.08176865]
[1738723382336,0.50909076,97670.0,97669.0,1.0458654]
[1738723383057,0.50909076,97670.0,97669.0,1.15850915]
[1738723383970,0.50909076,97670.0,97669.0,1.05612409]
[1738723385797,0.50909076,97670.0,97669.0,1.15850915]
[1738723385998,0.50909076,97670.0,97669.0,0.77370915]
[1738723387186,0.50909076,97670.0,97669.0,0.80490653]
[1738723388276,0.50909076,97670.0,97669.0,0.88540653]
[1738723389022,0.50909076,97670.0,97669.0,0.88440653]
[1738723389224,0.50909076,97670.0,97669.0,0.88040653]
[1738723389472,0.50909076,97670.0,97669.0,0.88640653]
[1738723390283,0.15024642,97670.0,97669.0,1.26000915]
[1738723390482,0.0072681,97700.0,97696.0,0.2781115]
[1738723390694,0.0072681,97700.0,97696.0,0.76529656]
[1738723390860,0.5118968,97697.0,97696.0,0.77221491]
[1738723392778,0.5118968,97697.0,97696.0,0.77321491]
[1738723393225,0.51180563,97697.0,97696.0,0.77521491]
[1738723393424,0.51180563,97697.0,97696.0,0.77221491]
[1738723393624,0.48676625,97697.0,97696.0,0.78224983]
[1738723393837,0.48676625,97697.0,97696.0,0.78524983]
[1738723394029,0.48676625,97697.0,97696.0,0.78224983]
[1738723394191,0.48676625,97697.0,97696.0,0.78168213]
[1738723394392,0.48676625,97697.0,97696.0,0.78468213]
[1738723394613,0.48676625,97697.0,97696.0,0.86448213]
[1738723394790,0.46629525,97697.0,97696.0,0.86448213]
[1738723395622,0.46629525,97697.0,97696.0,0.86348213]
[1738723396023,0.46629525,97697.0,97696.0,1.19428213]
[1738723396483,0.46629525,97697.0,97696.0,1.19728213]
[1738723396643,0.46629525,97697.0,97696.0,1.19328213]
[1738723397073,0.46629525,97697.0,97696.0,1.19728213]
[1738723397905,0.46629525,97697.0,97696.0,1.19828213]
[1738723398234,0.46629525,97697.0,97696.0,1.19728213]
[1738723398588,0.46629525,97697.0,97696.0,1.19828213]
[1738723399577,0.18552646,97697.0,97696.0,1.24128213]
[1738723399776,0.0465,97737.0,97730.0,0.1275008]
[1738723399980,0.0465,97737.0,97730.0,0.37988586]
[1738723400220,0.0465,97737.0,97730.0,0.38676707]
[1738723400623,0.5117168,97731.0,97730.0,0.38676707]
[1738723401540,0.5117168,97731.0,97730.0,0.38605327]
[1738723401746,0.5117168,97731.0,97730.0,0.28438201]
[1738723401903,0.5117168,97731.0,97730.0,0.28938201]
[1738723402762,0.5117168,97731.0,97730.0,0.28838201]
[1738723403054,0.5117168,97731.0,97730.0,0.29874121]
[1738723403231,0.5117168,97731.0,97730.0,0.29474121]
[1738723403659,0.5117168,97731.0,97730.0,0.29874121]
[1738723403840,0.5117168,97731.0,97730.0,0.29474121]
[1738723404021,0.5911168,97731.0,97730.0,0.28738201]
[1738723404618,0.5911168,97731.0,97730.0,0.29138201]
[1738723405022,0.5911168,97731.0,97730.0,0.28438201]
[1738723405218,0.5911168,97731.0,97730.0,0.28738201]
[1738723405423,0.5911168,97731.0,97730.0,0.28838201]
[1738723405756,0.5911168,97731.0,97730.0,0.28738201]
[1738723406171,0.5911168,97731.0,97730.0,0.28838201]
[1738723406570,0.5911168,97731.0,97730.0,0.28538201]
[1738723406815,0.5911168,97731.0,97730.0,0.28838201]
[1738723407015,0.5911168,97731.0,97730.0,0.28538201]
[1738723407521,0.5911168,97731.0,97730.0,0.28738201]
[1738723407690,0.5911168,97731.0,97730.0,0.28638201]
[1738723408301,0.5911168,97731.0,97730.0,0.01359501]
[1738723408302,0.6408168,97731.0,97730.0,0.01359501]
[1738723408504,0.6408168,97731.0,97730.0,0.0067138]
[1738723408914,0.6408168,97731.0,97730.0,0.01358198]
[1738723409450,0.6408168,97731.0,97730.0,0.0067138]
[1738723409627,0.6408168,97731.0,97730.0,0.0047138]
[1738723409805,0.6408168,97731.0,97730.0,0.01258198]
[1738723410056,0.6408168,97731.0,97730.0,0.0057138]
[1738723410273,0.6408168,97731.0,97730.0,0.01158198]
[1738723410473,0.6408168,97731.0,97730.0,0.01258198]
[1738723410766,0.7636028,97731.0,97730.0,0.00786818]
[1738723410902,0.6408168,97731.0,97730.0,0.001]
[1738723411277,0.6408168,97731.0,97726.0,0.0047138]
[1738723411497,0.6408168,97731.0,97730.0,0.0047138]
[1738723411674,0.6408168,97731.0,97730.0,0.1275008]
[1738723411885,0.6408168,97731.0,97730.0,0.01258198]
[1738723412594,0.6408168,97731.0,97730.0,0.1285008]
[1738723412855,0.6428168,97731.0,97730.0,0.13536907]
[1738723413080,0.6428168,97731.0,97730.0,0.13436907]
[1738723414109,0.6408168,97731.0,97730.0,0.13536907]
[1738723414315,0.6418168,97731.0,97730.0,0.13536907]
[1738723414557,0.6418168,97731.0,97730.0,0.13436907]
[1738723415067,0.6408168,97731.0,97730.0,0.13436907]
[1738723415569,0.5614168,97731.0,97730.0,0.13436907]
[1738723416253,0.5614168,97731.0,97730.0,0.13536907]
[1738723417475,0.5614168,97731.0,97730.0,0.28536907]
[1738723417732,0.5117168,97731.0,97730.0,0.39794584]
[1738723417937,0.5117168,97731.0,97730.0,0.78274584]
[1738723419284,0.5117168,97731.0,97730.0,0.78174584]
[1738723419486,0.5117168,97731.0,97730.0,0.78374584]
[1738723423431,0.5117168,97731.0,97730.0,1.11354584]
[1738723423892,0.5117168,97731.0,97730.0,1.1427097]
[1738723424084,0.5117168,97731.0,97730.0,1.1467097]
[1738723424336,0.5117168,97731.0,97730.0,1.1437097]
[1738723424771,0.5117168,97731.0,97730.0,1.1427097]
[1738723424971,0.5117168,97731.0,97730.0,1.1437097]